[Event "Early-Titled-Tuesday-Blitz-January-30-2024"]
[Site "Chess.com"]
[Date "2024.01.30"]
[Round "5"]
[White "HamedWafa4"]
[Black "GMaka"]
[Result "1-0"]
[WhiteElo "2798"]
[BlackElo "2526"]
[TimeControl "180+1"]
[EndTime "8:58:49 PST"]
[Termination "HamedWafa4 won by resignation"]

1. e4 {[%clk 0:03:00.9]} 1... c6 {[%clk 0:02:54.7]} 2. d4 {[%clk 0:03:00.5]}
2... d5 {[%clk 0:02:55.6]} 3. e5 {[%clk 0:03:00.3]} 3... Qb6 {[%clk 0:02:51.4]}
4. Be2 {[%clk 0:02:51.7]} 4... Bf5 {[%clk 0:02:43.4]} 5. Nf3 {[%clk 0:02:50.5]}
5... e6 {[%clk 0:02:43.3]} 6. O-O {[%clk 0:02:50]} 6... Nd7 {[%clk 0:02:35.7]}
7. c3 {[%clk 0:02:46.7]} 7... Ne7 {[%clk 0:02:32.9]} 8. a4 {[%clk 0:02:42.2]}
8... a5 {[%clk 0:02:32.3]} 9. h3 {[%clk 0:02:36.9]} 9... h6 {[%clk 0:01:55.9]}
10. Re1 {[%clk 0:02:23.9]} 10... g5 {[%clk 0:01:36.9]} 11. Nbd2 {[%clk
0:02:22.1]} 11... Bg7 {[%clk 0:01:36.2]} 12. Nf1 {[%clk 0:02:21.9]} 12... O-O
{[%clk 0:01:35.9]} 13. Ng3 {[%clk 0:02:21.7]} 13... Bg6 {[%clk 0:01:36.5]} 14.
h4 {[%clk 0:02:14.3]} 14... g4 {[%clk 0:01:28.6]} 15. Nh2 {[%clk 0:02:14.1]}
15... h5 {[%clk 0:01:28.6]} 16. f3 {[%clk 0:02:07.8]} 16... Nf5 {[%clk
0:01:26.6]} 17. Nxf5 {[%clk 0:02:06.4]} 17... exf5 {[%clk 0:01:27.5]} 18. f4
{[%clk 0:02:00.4]} 18... Rfd8 {[%clk 0:01:22.9]} 19. Nf1 {[%clk 0:01:57.2]}
19... Nf8 {[%clk 0:01:23.1]} 20. Bd3 {[%clk 0:01:54.2]} 20... Ne6 {[%clk
0:01:15.3]} 21. Ng3 {[%clk 0:01:54.1]} 21... c5 {[%clk 0:01:13.3]} 22. Nxf5
{[%clk 0:01:39.7]} 22... Bxf5 {[%clk 0:00:47.3]} 23. Bxf5 {[%clk 0:01:40.6]}
23... cxd4 {[%clk 0:00:48.2]} 24. cxd4 {[%clk 0:01:24.3]} 24... Qxd4+ {[%clk
0:00:45.1]} 25. Be3 {[%clk 0:01:20.7]} 25... Qb4 {[%clk 0:00:37.7]} 26. Qd3
{[%clk 0:01:04.2]} 26... Nxf4 {[%clk 0:00:34.9]} 27. Bxf4 {[%clk 0:00:56.2]}
27... Qxf4 {[%clk 0:00:35.8]} 28. Rf1 {[%clk 0:00:56.5]} 28... Qxe5 {[%clk
0:00:35.6]} 29. Rad1 {[%clk 0:00:52.4]} 29... Rd6 {[%clk 0:00:18.6]} 30. Kh1
{[%clk 0:00:45.7]} 30... Rad8 {[%clk 0:00:17.7]} 31. Bh7+ {[%clk 0:00:43.7]}
31... Kh8 {[%clk 0:00:18.3]} 32. Rf5 {[%clk 0:00:41.6]} 32... Qe4 {[%clk
0:00:18.3]} 33. Rxh5 {[%clk 0:00:35.9]} 33... Qxd3 {[%clk 0:00:18.6]} 34. Bxd3+
{[%clk 0:00:33.1]} 34... Kg8 {[%clk 0:00:19.5]} 35. Rg5 {[%clk 0:00:32.1]} 35...
Kf8 {[%clk 0:00:17.5]} 36. Rxg4 {[%clk 0:00:32.2]} 36... Bxb2 {[%clk 0:00:18.2]}
37. Rb1 {[%clk 0:00:31.1]} 37... Rb6 {[%clk 0:00:17.1]} 38. h5 {[%clk
0:00:28.3]} 38... Ke7 {[%clk 0:00:15.9]} 39. Re1+ {[%clk 0:00:23.1]} 39... Re6
{[%clk 0:00:15.1]} 40. Rf1 {[%clk 0:00:20.6]} 40... Rh8 {[%clk 0:00:14.9]} 41.
Rg5 {[%clk 0:00:19]} 41... d4 {[%clk 0:00:13.3]} 42. g4 {[%clk 0:00:18.7]} 42...
Re3 {[%clk 0:00:12.2]} 43. Bc4 {[%clk 0:00:18.9]} 43... f6 {[%clk 0:00:12]} 44.
Rg7+ {[%clk 0:00:18.5]} 44... Kd6 {[%clk 0:00:12.5]} 45. Rxf6+ {[%clk
0:00:18.1]} 45... Kc5 {[%clk 0:00:13.4]} 46. Rc7+ {[%clk 0:00:17.6]} 46... Kb4
{[%clk 0:00:13.7]} 47. Rb6+ {[%clk 0:00:17.9]} 47... Ka3 {[%clk 0:00:13.5]} 48.
Rcxb7 {[%clk 0:00:14.1]} 48... Bc3 {[%clk 0:00:13.6]} 49. Rb3+ {[%clk 0:00:14]}
49... Kxa4 {[%clk 0:00:13.2]} 50. Rb1 {[%clk 0:00:14.3]} 50... Rf8 {[%clk
0:00:10]} 51. Bb5+ {[%clk 0:00:11.7]} 51... Ka3 {[%clk 0:00:10]} 52. Bc6 {[%clk
0:00:11.1]} 52... Rf2 {[%clk 0:00:08]} 53. R7b3+ {[%clk 0:00:08]} 53... Ka2
{[%clk 0:00:07.3]} 54. Bd5 {[%clk 0:00:08.7]} 54... Rh3+ {[%clk 0:00:06.2]} 55.
Kg1 {[%clk 0:00:09.3]} 55... Rhh2 {[%clk 0:00:02.8]} 56. R3b2+ {[%clk
0:00:09.5]} 56... Ka3 {[%clk 0:00:03.6]} 57. Rxf2 {[%clk 0:00:10]} 57... Rxf2
{[%clk 0:00:03.5]} 58. Kxf2 {[%clk 0:00:10.9]} 58... d3 {[%clk 0:00:04.2]} 59.
Rd1 {[%clk 0:00:11.4]} 59... Bd4+ {[%clk 0:00:04.6]} 60. Kf3 {[%clk 0:00:11.5]}
60... Kb4 {[%clk 0:00:05.5]} 61. Rxd3 {[%clk 0:00:12]} 1-0

[Event "Early-Titled-Tuesday-Blitz-January-30-2024"]
[Site "Chess.com"]
[Date "2024.01.30"]
[Round "5"]
[White "HajiyevKanan"]
[Black "Matibar"]
[Result "0-1"]
[WhiteElo "2575"]
[BlackElo "2801"]
[TimeControl "180+1"]
[EndTime "8:58:50 PST"]
[Termination "Matibar won by checkmate"]

1. d4 {[%clk 0:03:00.9]} 1... d6 {[%clk 0:02:58.9]} 2. Nf3 {[%clk 0:03:01]} 2...
Nf6 {[%clk 0:02:58.2]} 3. g3 {[%clk 0:03:01.6]} 3... g6 {[%clk 0:02:56.2]} 4.
Bg2 {[%clk 0:03:02.1]} 4... Bg7 {[%clk 0:02:56.5]} 5. O-O {[%clk 0:03:03]} 5...
O-O {[%clk 0:02:56.7]} 6. b3 {[%clk 0:03:03.9]} 6... c6 {[%clk 0:02:48.9]} 7.
Bb2 {[%clk 0:03:02.8]} 7... Bf5 {[%clk 0:02:48.1]} 8. Nbd2 {[%clk 0:03:02.5]}
8... Qc8 {[%clk 0:02:48]} 9. c4 {[%clk 0:03:02]} 9... Bh3 {[%clk 0:02:47.6]} 10.
Qc2 {[%clk 0:03:02.2]} 10... Bxg2 {[%clk 0:02:41.9]} 11. Kxg2 {[%clk 0:03:03.1]}
11... a5 {[%clk 0:02:41]} 12. e4 {[%clk 0:03:03.1]} 12... Na6 {[%clk 0:02:41]}
13. e5 {[%clk 0:03:00.1]} 13... dxe5 {[%clk 0:02:38.2]} 14. dxe5 {[%clk
0:03:00.5]} 14... Ng4 {[%clk 0:02:27.9]} 15. Qe4 {[%clk 0:02:59.1]} 15... Nc5
{[%clk 0:02:23.8]} 16. Qe2 {[%clk 0:02:58.4]} 16... Rd8 {[%clk 0:02:21.5]} 17.
h3 {[%clk 0:02:55.5]} 17... Nd3 {[%clk 0:02:05]} 18. hxg4 {[%clk 0:02:51.8]}
18... Qxg4 {[%clk 0:02:02.9]} 19. Qe4 {[%clk 0:02:28.3]} 19... Qxe4 {[%clk
0:02:01.3]} 20. Nxe4 {[%clk 0:02:29.2]} 20... Nxb2 {[%clk 0:02:01.7]} 21. Nc5
{[%clk 0:02:00.6]} 21... b6 {[%clk 0:01:50.5]} 22. Rab1 {[%clk 0:01:48]} 22...
Nd3 {[%clk 0:01:24.8]} 23. Nxd3 {[%clk 0:01:47.8]} 23... Rxd3 {[%clk 0:01:25.7]}
24. Rbd1 {[%clk 0:01:43]} 24... Rad8 {[%clk 0:01:25.2]} 25. Rxd3 {[%clk
0:01:42.5]} 25... Rxd3 {[%clk 0:01:26.1]} 26. Rc1 {[%clk 0:01:39.2]} 26... e6
{[%clk 0:01:21.6]} 27. Rc2 {[%clk 0:01:32.7]} 27... Rd1 {[%clk 0:01:17.8]} 28.
c5 {[%clk 0:01:17.6]} 28... b5 {[%clk 0:01:14.3]} 29. g4 {[%clk 0:01:09.9]}
29... h6 {[%clk 0:01:13.5]} 30. Kg3 {[%clk 0:01:09.7]} 30... g5 {[%clk
0:01:13.3]} 31. Kg2 {[%clk 0:01:03.2]} 31... Kf8 {[%clk 0:01:11.7]} 32. a4
{[%clk 0:00:59.7]} 32... b4 {[%clk 0:01:10.7]} 33. Rd2 {[%clk 0:00:56]} 33...
Rxd2 {[%clk 0:01:09.8]} 34. Nxd2 {[%clk 0:00:56.9]} 34... Bxe5 {[%clk
0:01:09.7]} 35. Nc4 {[%clk 0:00:56.4]} 35... Bc7 {[%clk 0:01:10]} 36. Kf3 {[%clk
0:00:56.3]} 36... f6 {[%clk 0:00:47.2]} 37. Ke4 {[%clk 0:00:51.2]} 37... Kf7
{[%clk 0:00:47.3]} 38. f3 {[%clk 0:00:47.9]} 38... Kg6 {[%clk 0:00:47.2]} 39.
Ke3 {[%clk 0:00:38.4]} 39... f5 {[%clk 0:00:46.7]} 40. Kf2 {[%clk 0:00:35]}
40... h5 {[%clk 0:00:43.3]} 41. gxh5+ {[%clk 0:00:31.2]} 41... Kxh5 {[%clk
0:00:44.2]} 42. Nd6 {[%clk 0:00:31.7]} 42... Kg6 {[%clk 0:00:41.6]} 43. Nc4
{[%clk 0:00:30.6]} 43... Kf6 {[%clk 0:00:41.1]} 44. Ke3 {[%clk 0:00:30.2]} 44...
e5 {[%clk 0:00:40.8]} 45. Kd3 {[%clk 0:00:30]} 45... Ke6 {[%clk 0:00:41.1]} 46.
Ne3 {[%clk 0:00:25.3]} 46... Bd8 {[%clk 0:00:39.9]} 47. Kc4 {[%clk 0:00:25.1]}
47... Be7 {[%clk 0:00:31.7]} 48. Ng2 {[%clk 0:00:23.8]} 48... f4 {[%clk
0:00:30.9]} 49. Ne1 {[%clk 0:00:23.3]} 49... Kf5 {[%clk 0:00:30.7]} 50. Nd3
{[%clk 0:00:19.3]} 50... e4 {[%clk 0:00:29.7]} 51. fxe4+ {[%clk 0:00:19.4]}
51... Kxe4 {[%clk 0:00:30.6]} 52. Nf2+ {[%clk 0:00:18.8]} 52... Kf5 {[%clk
0:00:25.6]} 53. Kd4 {[%clk 0:00:17.9]} 53... g4 {[%clk 0:00:25.4]} 54. Ne4
{[%clk 0:00:18.1]} 54... g3 {[%clk 0:00:25.5]} 55. Nd2 {[%clk 0:00:16.7]} 55...
Kg4 {[%clk 0:00:17.9]} 56. Ke4 {[%clk 0:00:12.7]} 56... Bxc5 {[%clk 0:00:17.8]}
57. Nf3 {[%clk 0:00:13.6]} 57... Be3 {[%clk 0:00:17.8]} 58. Ne5+ {[%clk
0:00:13]} 58... Kh3 {[%clk 0:00:17.9]} 59. Kf3 {[%clk 0:00:13.9]} 59... g2
{[%clk 0:00:14.4]} 60. Nxc6 {[%clk 0:00:06.5]} 60... g1=Q {[%clk 0:00:14.2]} 61.
Ke2 {[%clk 0:00:06]} 61... Qg2+ {[%clk 0:00:14]} 62. Kd3 {[%clk 0:00:06.8]}
62... Qxc6 {[%clk 0:00:13.4]} 63. Ke2 {[%clk 0:00:06.7]} 63... Qe4 {[%clk
0:00:13.2]} 64. Kf1 {[%clk 0:00:06.9]} 64... Qc2 {[%clk 0:00:12.5]} 65. Ke1
{[%clk 0:00:06.8]} 65... f3 {[%clk 0:00:11.9]} 66. Kf1 {[%clk 0:00:06.4]} 66...
Qd1# {[%clk 0:00:12.2]} 0-1

[Event "Early-Titled-Tuesday-Blitz-January-30-2024"]
[Site "Chess.com"]
[Date "2024.01.30"]
[Round "5"]
[White "C_K_G"]
[Black "Quattroporte300"]
[Result "1-0"]
[WhiteElo "2144"]
[BlackElo "2396"]
[TimeControl "180+1"]
[EndTime "8:58:51 PST"]
[Termination "C_K_G won by checkmate"]

1. e4 {[%clk 0:01:53.6]} 1... c5 {[%clk 0:02:58.8]} 2. Nf3 {[%clk 0:01:48.7]}
2... a6 {[%clk 0:02:58.6]} 3. d4 {[%clk 0:01:48.7]} 3... cxd4 {[%clk 0:02:58.9]}
4. Nxd4 {[%clk 0:01:44.4]} 4... Nf6 {[%clk 0:02:59.3]} 5. Nc3 {[%clk 0:01:44]}
5... e5 {[%clk 0:02:59.8]} 6. Nb3 {[%clk 0:01:39.7]} 6... Nc6 {[%clk 0:03:00.1]}
7. Bd3 {[%clk 0:01:38.7]} 7... Bb4 {[%clk 0:02:55.9]} 8. O-O {[%clk 0:01:38.3]}
8... Bxc3 {[%clk 0:02:54.4]} 9. bxc3 {[%clk 0:01:38]} 9... O-O {[%clk
0:02:54.5]} 10. Bg5 {[%clk 0:01:33.7]} 10... h6 {[%clk 0:02:54.3]} 11. Bh4
{[%clk 0:01:32.5]} 11... Qe7 {[%clk 0:02:50.9]} 12. Kh1 {[%clk 0:01:29.2]} 12...
g5 {[%clk 0:02:46.7]} 13. Bg3 {[%clk 0:01:28.6]} 13... Kg7 {[%clk 0:02:47.1]}
14. h4 {[%clk 0:01:23.8]} 14... d6 {[%clk 0:02:46.5]} 15. Nd2 {[%clk 0:01:15]}
15... Ng4 {[%clk 0:02:33.6]} 16. Nf3 {[%clk 0:01:05.6]} 16... Be6 {[%clk
0:02:29.9]} 17. Qd2 {[%clk 0:00:56.3]} 17... f6 {[%clk 0:02:27.7]} 18. a4 {[%clk
0:00:53.1]} 18... Rac8 {[%clk 0:02:18.6]} 19. Ng1 {[%clk 0:00:46.9]} 19... h5
{[%clk 0:02:04.3]} 20. f3 {[%clk 0:00:31.7]} 20... Nh6 {[%clk 0:02:03.8]} 21.
Rab1 {[%clk 0:00:26.2]} 21... Nf7 {[%clk 0:01:33.2]} 22. Ne2 {[%clk 0:00:24.8]}
22... Nh8 {[%clk 0:01:32.1]} 23. Qe3 {[%clk 0:00:24.3]} 23... Ng6 {[%clk
0:01:30.7]} 24. hxg5 {[%clk 0:00:22.8]} 24... fxg5 {[%clk 0:01:30.1]} 25. Qb6
{[%clk 0:00:21.6]} 25... Rc7 {[%clk 0:01:30.3]} 26. c4 {[%clk 0:00:20.1]} 26...
h4 {[%clk 0:01:25.2]} 27. Bh2 {[%clk 0:00:19.7]} 27... Nf4 {[%clk 0:01:22.4]}
28. Nc3 {[%clk 0:00:19.1]} 28... Nd4 {[%clk 0:01:18.5]} 29. Nd5 {[%clk
0:00:18.8]} 29... Bxd5 {[%clk 0:01:18.7]} 30. cxd5 {[%clk 0:00:18.9]} 30... Rh8
{[%clk 0:01:12.8]} 31. Rf2 {[%clk 0:00:18.1]} 31... Rhc8 {[%clk 0:01:01.9]} 32.
Rb2 {[%clk 0:00:16.5]} 32... Qd7 {[%clk 0:00:59.9]} 33. Bf1 {[%clk 0:00:15.8]}
33... Nxc2 {[%clk 0:00:50]} 34. a5 {[%clk 0:00:13.5]} 34... Nd4 {[%clk
0:00:49.9]} 35. Rb1 {[%clk 0:00:13.2]} 35... Rb8 {[%clk 0:00:30]} 36. Rfb2
{[%clk 0:00:13]} 36... Rc5 {[%clk 0:00:27.1]} 37. Bxa6 {[%clk 0:00:12.2]} 37...
Rbc8 {[%clk 0:00:24.7]} 38. Bxb7 {[%clk 0:00:11.7]} 38... Rc1+ {[%clk
0:00:24.7]} 39. Bg1 {[%clk 0:00:10.8]} 39... R8c7 {[%clk 0:00:20.6]} 40. Bc6
{[%clk 0:00:11]} 40... Rxg1+ {[%clk 0:00:11.9]} 41. Kxg1 {[%clk 0:00:10.3]}
41... Nxc6 {[%clk 0:00:12.8]} 42. dxc6 {[%clk 0:00:10.3]} 42... Qe7 {[%clk
0:00:12.9]} 43. a6 {[%clk 0:00:10]} 43... Kf6 {[%clk 0:00:11.5]} 44. Qxc7 {[%clk
0:00:10.4]} 44... Qxc7 {[%clk 0:00:11.3]} 45. Rb6 {[%clk 0:00:11.3]} 45... Ne2+
{[%clk 0:00:10.2]} 46. Kf2 {[%clk 0:00:10.9]} 46... Nd4 {[%clk 0:00:10.8]} 47.
Rb7 {[%clk 0:00:08]} 47... Qxc6 {[%clk 0:00:09.9]} 48. a7 {[%clk 0:00:08.9]}
48... Qc2+ {[%clk 0:00:09.1]} 49. Kg1 {[%clk 0:00:09.4]} 49... Ne2+ {[%clk
0:00:07.8]} 50. Kh2 {[%clk 0:00:09.9]} 50... Nf4 {[%clk 0:00:08.3]} 51. R1b2
{[%clk 0:00:09.5]} 51... Qa4 {[%clk 0:00:08.3]} 52. R2b4 {[%clk 0:00:06.5]}
52... Qa2 {[%clk 0:00:08.1]} 53. Rb2 {[%clk 0:00:07.4]} 53... Qa6 {[%clk
0:00:08.2]} 54. R2b6 {[%clk 0:00:07.5]} 54... Qf1 {[%clk 0:00:07.7]} 55. Rb2
{[%clk 0:00:08.4]} 55... h3 {[%clk 0:00:08.2]} 56. a8=Q {[%clk 0:00:07.2]} 56...
hxg2 {[%clk 0:00:04.3]} 57. Qf8+ {[%clk 0:00:08.1]} 57... Kg6 {[%clk 0:00:04.8]}
58. Qg8+ {[%clk 0:00:08.1]} 58... Kh5 {[%clk 0:00:05.5]} 59. Rh7# {[%clk
0:00:07.7]} 1-0

[Event "Early-Titled-Tuesday-Blitz-January-30-2024"]
[Site "Chess.com"]
[Date "2024.01.30"]
[Round "5"]
[White "verrbaa"]
[Black "GAusal"]
[Result "0-1"]
[WhiteElo "2467"]
[BlackElo "2287"]
[TimeControl "180+1"]
[EndTime "8:58:52 PST"]
[Termination "GAusal won on time"]

1. e4 {[%clk 0:03:00.9]} 1... e5 {[%clk 0:02:55.6]} 2. Nf3 {[%clk 0:03:00.2]}
2... Nc6 {[%clk 0:02:55]} 3. Bb5 {[%clk 0:02:58.1]} 3... f5 {[%clk 0:02:54.9]}
4. d3 {[%clk 0:02:57.5]} 4... fxe4 {[%clk 0:02:51.5]} 5. dxe4 {[%clk 0:02:57.3]}
5... Nf6 {[%clk 0:02:48.5]} 6. O-O {[%clk 0:02:56]} 6... Bc5 {[%clk 0:02:45.2]}
7. Qd3 {[%clk 0:02:51]} 7... d6 {[%clk 0:02:44.7]} 8. c3 {[%clk 0:02:36.1]} 8...
Be6 {[%clk 0:02:43.8]} 9. a4 {[%clk 0:02:17.6]} 9... a6 {[%clk 0:02:40.5]} 10.
Bc4 {[%clk 0:01:59.2]} 10... Bxc4 {[%clk 0:02:35]} 11. Qxc4 {[%clk 0:02:00.1]}
11... h6 {[%clk 0:02:30.8]} 12. b4 {[%clk 0:01:56.7]} 12... Ba7 {[%clk 0:02:27]}
13. a5 {[%clk 0:01:53.3]} 13... Qd7 {[%clk 0:02:21.2]} 14. h3 {[%clk 0:01:39.4]}
14... Qf7 {[%clk 0:02:16]} 15. Qxf7+ {[%clk 0:01:39.1]} 15... Kxf7 {[%clk
0:02:14.9]} 16. Re1 {[%clk 0:01:39.5]} 16... Rhf8 {[%clk 0:02:08.6]} 17. Na3
{[%clk 0:01:34.4]} 17... Rfe8 {[%clk 0:02:02.8]} 18. Nc4 {[%clk 0:01:33.6]}
18... Rad8 {[%clk 0:01:58.6]} 19. Bb2 {[%clk 0:01:28.6]} 19... Kg8 {[%clk
0:01:53.1]} 20. Nfd2 {[%clk 0:01:07.1]} 20... Ne7 {[%clk 0:01:52.9]} 21. g3
{[%clk 0:01:06.1]} 21... d5 {[%clk 0:01:45.5]} 22. exd5 {[%clk 0:01:05.5]} 22...
Nexd5 {[%clk 0:01:44.9]} 23. Kg2 {[%clk 0:01:05.9]} 23... e4 {[%clk 0:01:41.1]}
24. Nf1 {[%clk 0:01:04.5]} 24... g5 {[%clk 0:01:35.4]} 25. Rad1 {[%clk
0:01:02.5]} 25... c6 {[%clk 0:01:33.8]} 26. Ncd2 {[%clk 0:00:31.9]} 26... Kf7
{[%clk 0:01:29.8]} 27. Nb3 {[%clk 0:00:22.7]} 27... Kg6 {[%clk 0:01:28.7]} 28.
Nc5 {[%clk 0:00:18.8]} 28... Bxc5 {[%clk 0:01:26.9]} 29. bxc5 {[%clk 0:00:18.8]}
29... e3 {[%clk 0:01:21.3]} 30. Nxe3 {[%clk 0:00:13]} 30... Nxe3+ {[%clk
0:01:17.4]} 31. fxe3 {[%clk 0:00:13.9]} 31... Rxd1 {[%clk 0:01:11.3]} 32. Rxd1
{[%clk 0:00:14.8]} 32... Rxe3 {[%clk 0:01:07.8]} 33. Kf2 {[%clk 0:00:11.4]}
33... Re5 {[%clk 0:00:57]} 34. Ba3 {[%clk 0:00:11.4]} 34... Nd5 {[%clk
0:00:50.8]} 35. Rd3 {[%clk 0:00:11.1]} 35... Re4 {[%clk 0:00:47.8]} 36. Bc1
{[%clk 0:00:03.3]} 36... Ra4 {[%clk 0:00:45.3]} 37. Bd2 {[%clk 0:00:03.1]} 37...
Rc4 {[%clk 0:00:42]} 38. Ke2 {[%clk 0:00:01.6]} 38... Rxc5 {[%clk 0:00:41]} 39.
Rf3 {[%clk 0:00:01.7]} 39... Nf6 {[%clk 0:00:35]} 40. Rd3 {[%clk 0:00:01.2]}
40... Re5+ {[%clk 0:00:34.8]} 41. Kf2 {[%clk 0:00:01]} 41... Ne4+ {[%clk
0:00:33.8]} 42. Kg2 {[%clk 0:00:01.5]} 42... Nxd2 {[%clk 0:00:33.6]} 43. Rxd2
{[%clk 0:00:02.4]} 43... Rxa5 {[%clk 0:00:33.7]} 44. Rd7 {[%clk 0:00:03.1]}
44... Rb5 {[%clk 0:00:33.1]} 45. Kf3 {[%clk 0:00:02.6]} 45... Rb3 {[%clk
0:00:31.9]} 46. Ke4 {[%clk 0:00:02.9]} 46... a5 {[%clk 0:00:31.9]} 47. Rd8
{[%clk 0:00:02.7]} 47... b5 {[%clk 0:00:31.2]} 48. g4 {[%clk 0:00:02.6]} 48...
a4 {[%clk 0:00:31]} 49. Rd6+ {[%clk 0:00:02.8]} 49... Kf7 {[%clk 0:00:29.6]} 50.
Rxc6 {[%clk 0:00:03.2]} 50... a3 {[%clk 0:00:30]} 51. Kd4 {[%clk 0:00:02.9]}
51... b4 {[%clk 0:00:26]} 52. cxb4 {[%clk 0:00:02.7]} 52... Rxb4+ {[%clk
0:00:26.2]} 53. Ke5 {[%clk 0:00:03]} 53... Ra4 {[%clk 0:00:23.7]} 54. Rc1 {[%clk
0:00:02.5]} 54... a2 {[%clk 0:00:23.7]} 55. Ra1 {[%clk 0:00:02.8]} 55... Kg6
{[%clk 0:00:22.7]} 56. Kd5 {[%clk 0:00:01.6]} 56... Ra3 {[%clk 0:00:22.8]} 57.
Ke5 {[%clk 0:00:01.6]} 57... h5 {[%clk 0:00:22.9]} 58. Kd5 {[%clk 0:00:01.2]}
58... hxg4 {[%clk 0:00:21.9]} 59. hxg4 {[%clk 0:00:02.1]} 59... Kf6 {[%clk
0:00:22.1]} 60. Kd6 {[%clk 0:00:02.3]} 60... Ra4 {[%clk 0:00:21]} 61. Kd5 {[%clk
0:00:02.1]} 61... Ra5+ {[%clk 0:00:20.1]} 62. Kd4 {[%clk 0:00:02.2]} 62... Ke6
{[%clk 0:00:19.6]} 63. Ke4 {[%clk 0:00:01.7]} 63... Ra4+ {[%clk 0:00:19.9]} 64.
Kf3 {[%clk 0:00:01.4]} 64... Ke5 {[%clk 0:00:20.4]} 65. Ke3 {[%clk 0:00:01]}
65... Ra3+ {[%clk 0:00:20.7]} 66. Kf2 {[%clk 0:00:01.1]} 66... Kf4 {[%clk
0:00:21.3]} 0-1

[Event "Early-Titled-Tuesday-Blitz-January-30-2024"]
[Site "Chess.com"]
[Date "2024.01.30"]
[Round "5"]
[White "AlexTruskavetsky"]
[Black "JimDiGrease"]
[Result "0-1"]
[WhiteElo "2690"]
[BlackElo "2940"]
[TimeControl "180+1"]
[EndTime "8:58:53 PST"]
[Termination "JimDiGrease won by checkmate"]

1. d4 {[%clk 0:03:00.9]} 1... d5 {[%clk 0:02:58.6]} 2. c4 {[%clk 0:03:00.8]}
2... e6 {[%clk 0:02:59.2]} 3. Nc3 {[%clk 0:03:00.7]} 3... c6 {[%clk 0:02:59.2]}
4. e4 {[%clk 0:02:59.1]} 4... dxe4 {[%clk 0:02:57.9]} 5. Nxe4 {[%clk 0:03:00]}
5... Bb4+ {[%clk 0:02:58.3]} 6. Nc3 {[%clk 0:03:00.7]} 6... e5 {[%clk
0:02:56.7]} 7. a3 {[%clk 0:02:57.1]} 7... Bxc3+ {[%clk 0:02:54.7]} 8. bxc3
{[%clk 0:02:58]} 8... Qa5 {[%clk 0:02:50.9]} 9. Bd2 {[%clk 0:02:57.1]} 9... Nf6
{[%clk 0:02:51]} 10. Bd3 {[%clk 0:02:56.9]} 10... O-O {[%clk 0:02:50.2]} 11. Ne2
{[%clk 0:02:57.5]} 11... e4 {[%clk 0:02:35.6]} 12. Bc2 {[%clk 0:02:57.5]} 12...
Bg4 {[%clk 0:02:35.9]} 13. O-O {[%clk 0:02:54.7]} 13... Nbd7 {[%clk 0:02:36.1]}
14. h3 {[%clk 0:02:53]} 14... Bh5 {[%clk 0:02:35.6]} 15. g4 {[%clk 0:02:50.9]}
15... Bg6 {[%clk 0:02:35.8]} 16. Ng3 {[%clk 0:02:08.3]} 16... Nb6 {[%clk
0:02:08.7]} 17. g5 {[%clk 0:02:04.8]} 17... Nfd7 {[%clk 0:02:06.3]} 18. h4
{[%clk 0:01:59.3]} 18... f5 {[%clk 0:01:56]} 19. c5 {[%clk 0:01:52.7]} 19... Nc4
{[%clk 0:01:25.8]} 20. h5 {[%clk 0:01:43.6]} 20... Be8 {[%clk 0:01:14.6]} 21. g6
{[%clk 0:01:26.8]} 21... Kh8 {[%clk 0:00:58.6]} 22. Ne2 {[%clk 0:01:15.3]} 22...
Qd8 {[%clk 0:00:56.7]} 23. Bb3 {[%clk 0:01:01.6]} 23... Nxd2 {[%clk 0:00:50.4]}
24. Qxd2 {[%clk 0:01:02.5]} 24... Qh4 {[%clk 0:00:50.9]} 25. Nf4 {[%clk
0:01:00.8]} 25... Nf6 {[%clk 0:00:49.5]} 26. Bd1 {[%clk 0:00:43.5]} 26... Nd5
{[%clk 0:00:35.4]} 27. Ng2 {[%clk 0:00:38.8]} 27... Qh3 {[%clk 0:00:21.3]} 28.
c4 {[%clk 0:00:38.9]} 28... f4 {[%clk 0:00:18.3]} 29. f3 {[%clk 0:00:38.3]}
29... e3 {[%clk 0:00:15.5]} 30. Qd3 {[%clk 0:00:31.6]} 30... Rf5 {[%clk
0:00:13.5]} 31. Qxf5 {[%clk 0:00:14.8]} 31... Qxf5 {[%clk 0:00:14.4]} 32. cxd5
{[%clk 0:00:15.7]} 32... cxd5 {[%clk 0:00:15.3]} 33. Ra2 {[%clk 0:00:11.8]}
33... hxg6 {[%clk 0:00:14.3]} 34. hxg6 {[%clk 0:00:11.9]} 34... Bxg6 {[%clk
0:00:14.7]} 35. Nh4 {[%clk 0:00:12.3]} 35... Qg5+ {[%clk 0:00:11.4]} 36. Rg2
{[%clk 0:00:12.6]} 36... Qxh4 {[%clk 0:00:11.8]} 37. Rh2 {[%clk 0:00:13.2]}
37... Qxh2+ {[%clk 0:00:12.2]} 38. Kxh2 {[%clk 0:00:14.1]} 38... Bd3 {[%clk
0:00:10.5]} 39. Rg1 {[%clk 0:00:14.2]} 39... Re8 {[%clk 0:00:08.4]} 40. Bb3
{[%clk 0:00:14.5]} 40... Bc4 {[%clk 0:00:07.5]} 41. Bc2 {[%clk 0:00:12.7]} 41...
e2 {[%clk 0:00:05.7]} 42. Re1 {[%clk 0:00:13.1]} 42... Re3 {[%clk 0:00:06.4]}
43. Kg2 {[%clk 0:00:13.6]} 43... Rxa3 {[%clk 0:00:06.6]} 44. Bf5 {[%clk
0:00:14]} 44... Kg8 {[%clk 0:00:06.3]} 45. Bc8 {[%clk 0:00:12.5]} 45... Rb3
{[%clk 0:00:06.1]} 46. Be6+ {[%clk 0:00:09.9]} 46... Kf8 {[%clk 0:00:06.2]} 47.
Kf2 {[%clk 0:00:10.6]} 47... Ke7 {[%clk 0:00:06.1]} 48. Bf5 {[%clk 0:00:10.1]}
48... Kf6 {[%clk 0:00:06.5]} 49. Bd7 {[%clk 0:00:09.7]} 49... g5 {[%clk
0:00:07.1]} 50. Rh1 {[%clk 0:00:09.4]} 50... Re3 {[%clk 0:00:06.3]} 51. Re1
{[%clk 0:00:09.3]} 51... a5 {[%clk 0:00:05.8]} 52. Bc8 {[%clk 0:00:09.8]} 52...
Rb3 {[%clk 0:00:05.3]} 53. Ra1 {[%clk 0:00:10.1]} 53... Rb2 {[%clk 0:00:04.6]}
54. Ke1 {[%clk 0:00:10.3]} 54... a4 {[%clk 0:00:03.8]} 55. Kf2 {[%clk
0:00:07.3]} 55... a3 {[%clk 0:00:04.1]} 56. Bg4 {[%clk 0:00:04.2]} 56... a2
{[%clk 0:00:04.5]} 57. c6 {[%clk 0:00:03.3]} 57... bxc6 {[%clk 0:00:05.2]} 58.
Bf5 {[%clk 0:00:03.3]} 58... Kxf5 {[%clk 0:00:05.1]} 59. Rh1 {[%clk 0:00:02.2]}
59... e1=Q+ {[%clk 0:00:05.5]} 60. Kxe1 {[%clk 0:00:02.4]} 60... a1=Q# {[%clk
0:00:06.2]} 0-1